Cogmind - Beta 10.2 @@@ ROGUE MODE // 2020.11.09 @ 21:54:25 // Halloween2020/ForbiddenLore Player: blelm Result: Self-destructed Performance ------------- Evolutions (6) 3000 Regions Visited (28) 5600 Robots Destroyed (515) 2575 Value Destroyed (21157) 21157 Prototype IDs (36) 720 Alien Tech Used (0) 0 Bonus (6870) 6870 TOTAL SCORE: 39922 Bonus ------- High Alert Combat Kills 3949 Follower Combat Kills 1679 Entered Garrisons 200 Used RIF Installer 500 Network Hubs Disabled 200 Met Data Miner 300 A7 Reached Mainframe 300 Met R17 at Cetus 500 Friendly Fire -758 Cogmind --------- Core Integrity 835/1150 Matter 229/300 Energy 401/415 System Corruption 4% Temperature Cool (34) Movement Treading (200) Ox2 Location -4/Factory Parts ------- > --- POWER (2) -------- Reinforced Antimatter Reactor Light Quantum Reactor > --- PROPULSION (4) --- Centrium Heavy Treads > --- UTILITY (11) ----- Advanced Cooling System High-capacity Storage Unit High-capacity Storage Unit High-capacity Storage Unit Advanced Signal Interpreter Improved Weapon Cycler Experimental Transmission Jammer Centrium Medium Armor Plating Centrium Medium Armor Plating > --- WEAPON (2) ------- Tesla Rifle Tesla Rifle > --- INVENTORY (28) --- Micro Fission Core Centrium Heavy Treads High-capacity Storage Unit Energy Well (500) Matter Compressor (250) Experimental Sensor Array Advanced Hacking Suite Advanced System Shield Relay Coupler [NC] (22) Improved System Backup Module EMDS Advanced Plasma Cannon KE Penetrator Railgun Railgun Improved KE Penetrator Improved KE Penetrator Improved KE Penetrator Heavy Shock Bomb Launcher Micro-nuke Launcher Improved Remote Datajack Peak State ------------ > --- POWER ------------ F-cell Engine Light Quantum Reactor > --- PROPULSION ------- Centrium Heavy Treads Centrium Heavy Treads > --- UTILITY ---------- Advanced Cooling System High-capacity Storage Unit High-capacity Storage Unit High-capacity Storage Unit Improved Kinecellerator Improved Weapon Cycler Experimental Transmission Jammer Layered Heavy Armor Plating Centrium Medium Armor Plating Centrium Medium Armor Plating > --- WEAPON ----------- Improved KE Penetrator Improved KE Penetrator > --- INVENTORY -------- Quantum Reactor Centrium Heavy Treads Centrium Heavy Treads High-capacity Storage Unit Energy Well Matter Compressor Experimental Sensor Array Centrium Medium Armor Plating Advanced Hacking Suite Advanced System Shield Relay Coupler [NC] Improved System Backup Module Tesla Rifle Tesla Rifle Tesla Rifle EMDS Advanced Plasma Cannon KE Penetrator Railgun Railgun Improved KE Penetrator Heavy Shock Bomb Launcher Micro-nuke Launcher Improved Remote Datajack [Rating: 145] Favorites ----------- Power F-cell Engine Engine F-cell Engine Reactor Antimatter Reactor Propulsion Heavy Treads Treads Heavy Treads Leg Aluminum Leg Wheel Compact Wheel Utility High-capacity Storage Unit Device Experimental Sensor Array Storage High-capacity Storage Unit Processor Advanced Signal Interpreter Hackware Relay Coupler [NC] Protection Damper Plating Weapon Flak Gun Energy Gun Tesla Rifle Energy Cannon Phase Cannon Ballistic Gun Flak Gun Ballistic Cannon Improved Light Cannon Launcher Heavy Shock Bomb Launcher Special Weapon Remote Datajack Slashing Weapon Katana Build | -11 -10 -10 -9 -9 -9 -9 -7 -7 -7 -7 -7 -7 -6 -6 -6 -6 -6 -6 -6 -5 -5 -5 -5 -5 -5 -5 -5 -4 ------- Run | Scr Mat Min Mat Sto Gar Rec Fac Was Fac Low Low Zio Pro Fac Was Fac Low Low Dat Pro Fac Was Fac Ext Cet Arc Hub Fac Slots Evolved 12 | . . . 2 . . . 4 . . . . . . 2 . . . . . . 2 . . . . . . 2 Power 1 | . . . . . . . . . . . . . . . . . . . . . . . . . . . . 1 Propulsion 2 | . . . . . . . 1 . . . . . . 1 . . . . . . . . . . . . . . Utility 9 | . . . 2 . . . 3 . . . . . . 1 . . . . . . 2 . . . . . . 1 Weapon . | . . . . . . . . . . . . . . . . . . . . . . . . . . . . . Parts Attached 892 | 3 8 4 39 27 18 . 53 15 114 3 19 2 5 92 13 65 3 3 . 1 73 25 91 49 21 15 53 78 Power 24 | . 2 . 5 1 . . 1 1 . 1 1 . 1 2 . . . . . . . 1 . . 2 . . 6 Engine 13 | . 2 . 5 1 . . 1 . . . . . 1 1 . . . . . . . 1 . . . . . 1 Core . | . . . . . . . . . . . . . . . . . . . . . . . . . . . . . Reactor 11 | . . . . . . . . 1 . 1 1 . . 1 . . . . . . . . . . 2 . . 5 Propulsion 53 | 2 . 1 9 5 5 . 7 2 4 . . . 1 7 . . . . . . . 4 1 . 4 . . 1 Treads 49 | 1 . . 9 5 5 . 5 2 4 . . . 1 7 . . . . . . . 4 1 . 4 . . 1 Leg . | . . . . . . . . . . . . . . . . . . . . . . . . . . . . . Wheel 4 | 1 . 1 . . . . 2 . . . . . . . . . . . . . . . . . . . . . Hover . | . . . . . . . . . . . . . . . . . . . . . . . . . . . . . Flight . | . . . . . . . . . . . . . . . . . . . . . . . . . . . . . Utility 436 | 1 2 . 7 8 8 . 31 3 51 2 12 2 2 47 10 38 3 2 . . 33 5 45 30 9 9 37 39 Device 304 | . . . . . 4 . 18 1 25 1 7 . . 42 5 33 2 2 . . 32 3 41 27 3 5 27 26 Storage 28 | 1 2 . 1 3 1 . . . . . . . . 1 . 4 1 . . . . . 2 3 2 . 5 2 Processor 5 | . . . . . . . . . 1 . . . . 1 . . . . . . 1 . 1 . . . . 1 Hackware 3 | . . . . . . . . 1 . . . . . . . . . . . . . 1 . . . 1 . . Protection 96 | . . . 6 5 3 . 13 1 25 1 5 2 2 3 5 1 . . . . . 1 1 . 4 3 5 10 Artifact . | . . . . . . . . . . . . . . . . . . . . . . . . . . . . . Weapon 379 | . 4 3 18 13 5 . 14 9 59 . 6 . 1 36 3 27 . 1 . 1 40 15 45 19 6 6 16 32 Energy Gun 89 | . 1 . 5 1 . . . . 21 . 1 . . 2 . 6 . 1 . . 13 . 19 6 3 2 3 5 Energy Cannon 70 | . . . . 3 2 . 3 . 6 . . . . 5 1 11 . . . 1 9 . 13 3 1 . 5 7 Ballistic Gun 122 | . 2 2 7 . . . 3 6 12 . 4 . . 14 2 6 . . . . 12 9 9 9 1 4 6 14 Ballistic Cannon 7 | . . . . 3 1 . 3 . . . . . . . . . . . . . . . . . . . . . Launcher 30 | . . . 4 4 2 . . . 1 . 1 . 1 5 . 1 . . . . 1 . 1 1 1 . 2 5 Special Weapon 23 | . . . . . . . . 3 4 . . . . . . 1 . . . . 5 6 3 . . . . 1 Impact Weapon . | . . . . . . . . . . . . . . . . . . . . . . . . . . . . . Slashing Weapon 38 | . 1 1 2 2 . . 5 . 15 . . . . 10 . 2 . . . . . . . . . . . . Piercing Weapon . | . . . . . . . . . . . . . . . . . . . . . . . . . . . . . Special Melee Weapon . | . . . . . . . . . . . . . . . . . . . . . . . . . . . . . Unidentified Prototypes 17 | . . . 3 2 . . . . 2 . . . . 1 . . . . . . . . 3 . 4 . 1 1 Parts Lost 37 | . 1 1 1 1 . . 2 . 3 1 7 . 3 2 . 1 . . . . 2 . 1 . 1 1 1 8 Power 7 | . 1 . . . . . 1 . . 1 . . 1 1 . . . . . . . . . . . . . 2 Propulsion 6 | . . 1 . 1 . . . . . . . . 2 . . . . . . . . . . . . . . 2 Utility 17 | . . . 1 . . . . . 2 . 3 . . 1 . 1 . . . . 2 . 1 . 1 . 1 4 Weapon 7 | . . . . . . . 1 . 1 . 4 . . . . . . . . . . . . . . 1 . . Highest Loss Streak 7 | . 1 1 1 1 . . 1 . 1 1 7 . 2 1 . 1 . . . . 2 . 1 . 1 1 1 3 Average Slot Usage (%) 84 | . 99 100 99 99 100 100 92 92 91 92 89 91 88 74 73 73 73 73 73 73 74 76 75 76 75 80 78 80 Engine 4 | . 14 14 11 11 11 11 6 4 . . . . 6 5 6 6 6 6 6 6 5 5 5 5 . . . 3 Reactor 2 | . . . . . . . . 2 7 7 6 7 . . . . . . . . . . . . 4 5 5 6 Treads 13 | . 14 14 11 20 22 22 8 10 15 15 15 15 11 13 13 13 13 13 13 13 11 11 11 11 11 11 11 9 Device 10 | . . . . . 8 . 16 20 14 14 18 7 7 6 6 5 6 6 6 6 15 11 16 16 11 15 13 21 Storage 20 | . 28 28 22 22 23 33 23 23 23 23 23 23 23 20 20 20 20 20 20 20 17 17 17 17 17 17 17 15 Processor 4 | . . . . . . . . . 2 7 7 7 7 6 6 6 6 6 6 6 5 5 5 5 5 5 4 1 Protection 8 | . . . 21 21 12 11 13 2 7 7 1 14 15 6 5 6 6 6 6 6 5 5 4 5 10 11 11 9 Energy Gun 2 | . 11 . 9 2 . . . . 5 15 1 . . . . 1 . 2 6 2 1 . 4 4 3 1 . 1 Energy Cannon 2 | . . . . 5 10 11 3 . 1 . . . . 2 . 6 13 10 6 10 4 . 3 1 . . 1 1 Ballistic Gun 6 | . 14 26 11 2 . . 3 14 3 . 13 15 11 7 12 3 . . . . 3 10 1 4 1 8 7 6 Naked Turns . | . . . . . . . . . . . . . . . . . . . . . . . . . . . . . Heaviest Build 204 | 14 41 41 53 90 99 99 111 110 133 120 149 116 116 151 150 169 169 169 165 169 173 165 175 171 189 185 191 204 Greatest Support 160 | 16 16 16 20 40 40 40 84 98 98 98 98 98 98 140 140 140 140 140 140 140 140 140 140 140 160 160 160 160 Greatest Overweight (x) 38 | . 2 2 3 3 2 2 3 3 4 1 1 38 1 2 1 1 1 1 1 1 1 1 1 1 1 1 1 2 Average Overweight (x) 1 | . . 2 2 1 2 2 2 2 1 1 . 24 1 1 . 1 1 1 1 1 1 1 1 1 . . . 1 Largest Inventory Capacity 32 | 8 16 16 16 20 26 26 26 26 26 26 26 26 26 26 26 28 28 28 28 28 28 28 28 32 28 28 28 28 Average Capacity 25 | 6 10 16 16 16 20 26 26 26 26 26 26 26 26 26 26 27 28 28 28 28 28 28 28 28 28 28 28 28 Most Carried 28 | 6 14 14 16 20 22 22 26 26 26 26 26 26 26 26 26 28 28 28 28 28 28 28 28 28 28 28 28 28 Average Carried 25 | 4 8 13 15 16 20 22 25 25 25 25 22 24 24 25 25 27 27 28 28 28 27 27 27 27 27 27 27 26 Final Capacity 28 | 8 16 16 16 20 26 26 26 26 26 26 26 26 26 26 26 28 28 28 28 28 28 28 28 28 28 28 28 28 Final Carried 28 | 4 14 14 16 19 22 22 26 26 26 26 24 25 25 26 26 25 28 28 28 28 28 28 25 28 28 28 28 23 Class Distribution -------------------- 80% | Hauler-Mutant 9% | Scavenger-Mutant 5% | Mutant 4% | Hauler-Skirmisher Dominant Class ---------------- Mutant | -10/Materials Mutant | -10/Mines Mutant | -9/Materials Mutant | -9/Storage Hauler-Mutant | -9/Garrison Hauler-Mutant | -9/Recycling Hauler-Mutant | -7/Factory Hauler-Mutant | -7/Waste Hauler-Mutant | -7/Factory Hauler-Mutant | -7/Lower Caves Hauler-Skirmisher | -7/Lower Caves Hauler-Mutant | -7/Zion Hauler-Mutant | -6/Proximity Caves Hauler-Mutant | -6/Factory Hauler-Mutant | -6/Waste Hauler-Mutant | -6/Factory Hauler-Mutant | -6/Lower Caves Hauler-Mutant | -6/Lower Caves Hauler-Mutant | -6/Data Miner Hauler-Mutant | -5/Proximity Caves Hauler-Mutant | -5/Factory Hauler-Mutant | -5/Waste Hauler-Mutant | -5/Factory Hauler-Mutant | -5/Extension Hauler-Mutant | -5/Cetus Scavenger-Mutant | -5/Archives Scavenger-Mutant | -5/Hub_04(d) Scavenger-Mutant | -4/Factory Resources | -11 -10 -10 -9 -9 -9 -9 -7 -7 -7 -7 -7 -7 -6 -6 -6 -6 -6 -6 -6 -5 -5 -5 -5 -5 -5 -5 -5 -4 ----------- Run | Scr Mat Min Mat Sto Gar Rec Fac Was Fac Low Low Zio Pro Fac Was Fac Low Low Dat Pro Fac Was Fac Ext Cet Arc Hub Fac Matter Collected 17705 | 222 106 217 631 486 308 3 759 888 1588 132 401 . 174 1954 260 1194 80 30 . . 1258 1217 1346 749 338 273 1157 1934 Remotely . | . . . . . . . . . . . . . . . . . . . . . . . . . . . . . Salvage Created 30141 | 72 310 214 1492 1041 657 8 530 1341 2529 60 838 . 170 3193 794 2178 . 73 . . 1424 1600 2350 1673 907 528 2813 3346 Parts 1308 | 2 22 9 114 72 38 3 35 24 118 2 32 . 4 124 10 96 . 3 . . 69 35 105 73 47 23 121 127 Haulers Intercepted 26 | . 1 . 4 4 . . . . 4 . . . . 2 . . . . . . 1 . 4 . . . 6 . Recyclers Shooed 28 | 1 . . 1 . . . . . 3 . . . . 4 . 1 . . . . . . 6 1 . . 1 10 Parts Field Recycled . | . . . . . . . . . . . . . . . . . . . . . . . . . . . . . Retrieved Matter . | . . . . . . . . . . . . . . . . . . . . . . . . . . . . . Parts Self-Destructed 43 | . . . . . . . . . . 4 29 8 2 . . . . . . . . . . . . . . . Prevented 15 | . . . . . . . . . . 5 6 . . . . . . 3 . 1 . . . . . . . . Kills | -11 -10 -10 -9 -9 -9 -9 -7 -7 -7 -7 -7 -7 -6 -6 -6 -6 -6 -6 -6 -5 -5 -5 -5 -5 -5 -5 -5 -4 ------- Run | Scr Mat Min Mat Sto Gar Rec Fac Was Fac Low Low Zio Pro Fac Was Fac Low Low Dat Pro Fac Was Fac Ext Cet Arc Hub Fac Combat Hostiles Destroyed 345 | . 4 4 29 20 14 2 7 5 33 1 17 . 4 32 . 31 . 1 . . 19 6 21 15 16 4 24 36 Melee 1 | . . . . . . . . . . . . . . . . . . . . . . . . . . . . 1 Guns 178 | . 3 4 19 4 . . 2 5 25 1 12 . 1 13 . 8 . . . . 12 6 12 9 . 2 17 23 Cannons 33 | . . . . 3 8 2 4 . 3 . . . . 3 . 9 . 1 . . . . . . . . . . AOE 85 | . 1 . 10 13 6 . . . 3 . 5 . 3 9 . 5 . . . . 4 . 3 3 11 . 5 4 Classes Destroyed 20 | 1 4 2 4 3 . 1 2 1 . . . . . . . . . . . . . . . 1 . . . 1 Worker 33 | . 1 . 2 3 . . 2 . 4 . . . . 4 . 1 . . . . 1 . 1 . . . 8 6 Builder 21 | . . 1 4 . . . . . . . . . . 2 . 1 . . . . . . 4 2 . . 4 3 Tunneler 4 | . . 1 1 . . . . . . . . . . . . . . . . . . . . 1 . . 1 . Hauler 26 | . 1 . 4 4 . . . . 4 . . . . 2 . . . . . . 1 . 4 . . . 6 . Recycler 35 | 1 . . . 1 . . 3 . 4 . . . . 7 . 2 . . . . 1 . 3 4 . . 2 7 Mechanic 1 | . . . . 1 . . . . . . . . . . . . . . . . . . . . . . . . Operator 16 | . . . 2 2 . . . . 2 . . . . 1 . 1 . . . . . . 4 . . 4 . . Drone 2 | . . . . . . 2 . . . . . . . . . . . . . . . . . . . . . . Watcher 31 | . 2 . 2 1 . . 1 . 5 . . . . 4 . . . . . . 4 . . 3 2 . 5 2 Swarmer 46 | . . . 13 3 . . . . . . 5 . . 3 . 5 . . . . 4 . . 1 8 . 4 . Saboteur 1 | . . . . . . . . . . . . . . . . . . . . . . . . . . . . 1 Grunt 118 | . 4 4 9 9 7 . . . 18 . 3 . 4 11 . 14 . . . . . . 8 4 1 . 8 14 Brawler 7 | . . . 2 . . . . . . . 1 . . 1 . 1 . . . . . . . . . . . 2 Duelist 16 | . . . . 1 1 . . . 1 . 7 . . 1 . 3 . . . . . . . . . . . 2 Protector 4 | . . . . 1 . . . . . . . . . . . 1 . . . . . . . . . . 2 . Sentry 54 | . . . 6 6 6 . 3 . 3 . 1 . . 3 . 5 . 1 . . 2 . 4 3 . 4 3 4 Hunter 26 | . . . . . . . 1 . 6 1 . . . 7 . . . . . . 3 . 2 . 2 . 2 2 Programmer 50 | . . . . . . . 3 . 5 . . . . 6 . 2 . . . . 10 . 7 4 . . 2 11 Behemoth 2 | . . . . . . . . . . . . . . . . . . . . . . . . 2 . . . . Compactor 11 | . . . . . . . . 5 . . . . . . . . . . . . . 6 . . . . . . Cetus Guard 5 | . . . . . . . . . . . . . . . . . . . . . . . . . 5 . . . Lightning 3 | . . . . . . . . . . . . . . . . . . . . . . . . . . . 3 . Thug 1 | . . . . . 1 . . . . . . . . . . . . . . . . . . . . . . . Butcher 1 | . . . . . . . . . . . . . . . . . . . . . . . . 1 . . . . Guerrilla 1 | . . . . . . . . . . . . . . . . . . . . . . . . . 1 . . . Best Kill Streak 15 | 1 3 2 10 11 6 1 4 1 4 1 6 . 3 6 . 10 . 1 . . 4 1 5 5 8 3 15 8 Combat Bots Only 8 | . 1 2 8 8 6 1 1 1 3 1 6 . 3 6 . 8 . 1 . . 4 1 3 3 7 2 6 6 Max Kills in Single Turn 6 | 1 1 1 3 6 4 1 2 1 2 1 2 . 2 2 . 3 . 1 . . 2 1 4 3 3 1 3 3 Gunslinging 1 | . . . . . . . . . . . 1 . . 1 . . . . . . 1 . . . . . . . Exploded 4 | . 1 . 3 4 4 . . . 2 . 2 . 2 1 . 3 . . . . 1 . 3 3 3 . 2 1 Melee 1 | . . . . . . . . . . . . . . . . . . . . . . . . . . . . 1 Uniques/NPCs Destroyed . | . . . . . . . . . . . . . . . . . . . . . . . . . . . . . Combat | -11 -10 -10 -9 -9 -9 -9 -7 -7 -7 -7 -7 -7 -6 -6 -6 -6 -6 -6 -6 -5 -5 -5 -5 -5 -5 -5 -5 -4 -------- Run | Scr Mat Min Mat Sto Gar Rec Fac Was Fac Low Low Zio Pro Fac Was Fac Low Low Dat Pro Fac Was Fac Ext Cet Arc Hub Fac Damage Taken 21811 | . 207 227 751 453 477 59 620 . 2194 105 2260 . 284 2069 . 1521 . 5 . . 1007 . 1635 1392 511 485 1698 3851 Core 1451 | . 18 44 45 78 73 20 52 . 76 35 112 . 39 160 . 46 . . . . 67 . 96 75 . . 100 315 Absorbed by Shields 222 | . . . . . . . . . . . . . . 37 . . . . . . . . . 79 106 . . . Reduced by Siege Mode 671 | . . . . . . . . . 86 . 47 . 10 38 . 69 . . . . 24 . 92 49 . 36 44 176 Core Remaining (%) 69 | 100 . 75 . . . 46 . . . . . . 55 . . . . . . 75 . . . . . . 66 . Volleys Fired 1755 | 2 29 24 73 40 35 8 41 66 116 3 41 . 8 154 13 137 . 4 . 2 195 68 257 97 22 25 132 163 Largest 2 | 2 2 2 2 2 2 2 2 2 2 2 2 . 2 2 2 2 . 2 . 1 2 2 2 2 1 2 2 2 Hottest 163 | 60 60 40 68 107 107 107 108 56 124 100 100 . 56 124 56 124 . 124 . 90 145 66 163 163 65 130 133 133 Shots Fired 2748 | 4 58 48 123 70 53 16 75 120 205 6 72 . 12 245 26 198 . 6 . 2 250 119 344 156 22 50 198 270 Gun 1815 | 4 58 48 111 27 . . 17 115 167 6 70 . 8 145 26 66 . 2 . . 106 113 174 120 3 50 166 213 Cannon 770 | . . . . 37 47 16 58 . 29 . . . . 81 . 122 . 4 . 2 122 . 162 35 . . 20 35 Launcher 121 | . . . 12 6 6 . . . 2 . 2 . 4 19 . 8 . . . . 5 . 4 1 19 . 12 21 Special 42 | . . . . . . . . 5 7 . . . . . . 2 . . . . 17 6 4 . . . . 1 Kinetic 1348 | 2 33 48 62 35 20 8 48 115 74 . 53 . 8 111 26 14 . . . . 65 113 87 58 . 32 148 188 Thermal 544 | . . . . 16 27 8 16 . 1 . . . . 37 . 67 . 2 . 2 116 . 162 35 . . 20 35 Explosive 27 | . . . 1 3 . . . . 2 . 2 . 4 7 . . . . . . . . . . . . . 8 Electromagnetic 787 | 2 25 . 60 16 6 . 11 . 121 6 17 . . 90 . 115 . 4 . . 52 . 91 63 22 18 30 38 Robot Hit Streak 57 | 1 6 5 15 16 5 2 20 12 24 5 25 . 20 31 28 33 . 18 . . 31 37 57 31 9 19 31 19 Robot Miss Streak 14 | 1 2 3 6 3 3 4 4 6 4 2 2 . 1 6 2 6 . 1 . . 14 6 4 2 2 3 2 5 Penetration Max 1 | . . . . . . . . . 1 . . . . . . . . . . . 1 . 1 1 . 1 1 1 Secondary Targets 19 | . . 1 1 . . . . 1 . . 3 . . 1 . . . . . . 2 2 . 2 . . 4 2 Max Gunslinging Chain 1 | . . 1 1 . . . . 1 . . 1 . . 1 . . . . . . 1 1 . 1 . . 1 1 Shots Hit Robots 1816 | 2 31 29 84 45 23 6 59 106 184 5 67 . 11 192 24 108 . 2 . . 113 117 168 103 4 39 127 167 Core Hits 1214 | 2 13 12 62 42 19 2 22 48 144 2 68 . 11 160 22 66 . 1 . . 60 75 100 46 30 18 83 106 Critical Hits 107 | . 1 . . . 2 . 4 . 3 1 . . . 2 . . . 1 . . 8 3 5 9 . 6 28 34 Critical Kills 39 | . 1 . . . 2 . 1 . 1 1 . . . . . . . 1 . . 3 . 1 1 . 2 14 11 Critical Parts Destroyed 62 | . . . . . . . 3 . 2 . . . . 2 . . . . . . 5 . 4 6 . 4 13 23 Melee Attacks 144 | . 3 3 3 5 . . 22 . 66 . . . . 38 . 4 . . . . . . . . . . . . Impact . | . . . . . . . . . . . . . . . . . . . . . . . . . . . . . Slashing 144 | . 3 3 3 5 . . 22 . 66 . . . . 38 . 4 . . . . . . . . . . . . Piercing . | . . . . . . . . . . . . . . . . . . . . . . . . . . . . . Sneak Attacks 14 | . 1 1 . . . . 1 . 6 . . . . 5 . . . . . . . . . . . . . . Combat Hostiles . | . . . . . . . . . . . . . . . . . . . . . . . . . . . . . Follow-up Attacks . | . . . . . . . . . . . . . . . . . . . . . . . . . . . . . Damage Inflicted 60936 | 17 418 412 2067 1700 820 128 1334 2598 5370 81 2076 . 778 6894 793 3363 . 50 . . 2831 3467 5045 3450 1930 1256 5686 8372 Guns 36546 | 17 312 345 1262 403 . . 172 2598 3207 81 1528 . 172 2438 793 959 . . . . 1928 3467 3749 2950 69 1212 3959 4925 Cannons 6816 | . . . . 367 505 128 1069 . 511 . . . . 1657 . 1303 . 50 . . 331 . 630 34 . . 100 131 Explosions 15323 | . 31 . 805 916 315 . . . 903 . 548 . 606 2159 . 1072 . . . . 516 . 614 400 1861 . 1295 3282 Melee 1478 | . 75 67 . . . . 93 . 683 . . . . 560 . . . . . . . . . . . . . . Ramming 773 | . . . . 14 . . . . 66 . . . . 80 . 29 . . . . 56 . 52 66 . 44 332 34 Kinetic 29053 | 17 170 345 732 466 308 87 768 2598 1554 . 1164 . 172 2196 793 227 . . . . 1268 3467 2192 1654 . 891 3510 4474 Thermal 5287 | . 31 . 172 297 267 41 234 . 492 . 146 . . 722 . 474 . . . . 197 . 772 376 374 . 266 426 Explosive 5467 | . . . 133 660 . . . . 411 . 402 . 606 818 . . . . . . 226 . 394 . . . . 1817 Electromagnetic 18878 | . 142 . 1030 263 245 . 239 . 2164 81 364 . . 2518 . 2633 . 50 . . 1084 . 1635 1354 1556 321 1578 1621 Impact . | . . . . . . . . . . . . . . . . . . . . . . . . . . . . . Slashing 1478 | . 75 67 . . . . 93 . 683 . . . . 560 . . . . . . . . . . . . . . Piercing . | . . . . . . . . . . . . . . . . . . . . . . . . . . . . . Highest Corruption 4 | . . . 3 3 3 3 2 1 3 1 1 . . . . . . . . . . 3 3 1 . . 2 4 Average Corruption 1 | . . . 3 3 3 3 1 1 1 1 1 . . . . . . . . . . 1 1 1 . . 1 1 Corruption Purged 19 | . . . . . . . 1 1 2 . 1 . . . . . . . . . . . 6 2 . . . 6 Effects 168 | . . . . 33 32 9 8 . 36 3 5 . . . . . . . . . . 3 14 3 . . 5 17 Message Errors 46 | . . . . 7 12 3 4 . 11 . 2 . . . . . . . . . . . 2 . . . . 5 Matter Fused 20 | . . . . 6 3 2 . . 6 . . . . . . . . . . . . . 1 . . . . 2 Heat Flow Errors 11 | . . . . 3 4 1 . . 1 . . . . . . . . . . . . . 1 . . . . 1 Energy Discharges 30 | . . . . 5 5 1 1 . 8 1 2 . . . . . . . . . . 1 1 1 . . 3 1 Data Loss (minor) 33 | . . . . 5 6 . 3 . 7 2 . . . . . . . . . . . . 5 2 . . 1 2 Targeting Errors 26 | . . . . 7 2 2 . . 3 . 1 . . . . . . . . . . 2 3 . . . 1 5 Weapon Failures 2 | . . . . . . . . . . . . . . . . . . . . . . . 1 . . . . 1 Overload Shots 1 | . . . . . . . . . 1 . . . . . . . . . . . . . . . . . . . Overflow Damage 1452 | . . 37 . 12 . . 76 . 386 . 25 . 10 371 . 101 . . . . 57 . 69 22 7 15 73 191 Projectiles 299 | . . . . . . . 23 . 90 . . . . 116 . 8 . . . . 13 . 49 . . . . . Explosions 548 | . . . . 12 . . . . 65 . 25 . 10 73 . 93 . . . . 35 . 20 16 7 . 1 191 Melee 605 | . . 37 . . . . 53 . 231 . . . . 182 . . . . . . 9 . . 6 . 15 72 . Knockbacks 13 | . . . . 1 2 3 1 . 1 . . . . 1 . . . . . . . . . 1 . 1 1 1 Impact 7 | . . . . 1 . . . . 1 . . . . 1 . . . . . . . . . 1 . 1 1 1 Kinetic 6 | . . . . . 2 3 1 . . . . . . . . . . . . . . . . . . . . . Secondary . | . . . . . . . . . . . . . . . . . . . . . . . . . . . . . Self-Inflicted Damage 833 | . . . 39 96 1 . . . 212 . 61 . . 38 . 13 . . . . 94 . 73 23 2 . 62 119 Shots 28 | . . . 3 4 1 . . . 3 . 1 . . 1 . 1 . . . . 2 . 1 1 2 . 3 5 Rammed 36 | . . . . 2 . . . . 2 . . . . 2 . 2 . . . . 4 . 3 3 . 3 13 2 Targets Rammed 38 | . . . . 2 . . . . 3 . . . . 2 . 2 . . . . 4 . 3 4 . 3 13 2 Kicked . | . . . . . . . . . . . . . . . . . . . . . . . . . . . . . Crushed 2 | . . . . . . . . . 1 . . . . . . . . . . . . . . 1 . . . . Highest Temperature 458 | 20 94 2 189 181 324 200 4 . 278 . 312 . 68 458 45 360 . 120 . 120 216 3 318 184 6 126 50 164 Average Temperature 68 | 15 39 2 44 49 94 59 3 . 106 . 136 . 25 77 20 81 . 62 . 61 44 3 68 55 6 58 13 37 Received Heat Transfer 3893 | . 117 126 162 66 183 9 114 . 459 . 252 . 141 291 . 390 . . . . 36 . 387 298 61 45 291 465 Effects 11 | . . . . . 2 . . . . . 2 . . 1 . 5 . . . . . . 1 . . . . . Energy Bleed 2 | . . . . . . . . . . . . . . 1 . 1 . . . . . . . . . . . . Interference 8 | . . . . . 2 . . . . . 2 . . . . 4 . . . . . . . . . . . . Damage (minor) 1 | . . . . . . . . . . . . . . . . . . . . . . . 1 . . . . . Siege Activations 134 | . . . . . . . . . 23 1 5 . 2 19 1 14 . 1 . . 11 5 11 10 1 3 9 18 Total Turns 2244 | . . . . . . . . . 351 6 122 . 19 318 11 237 . 5 . . 182 108 257 125 5 102 192 204 Longest Duration 121 | . . . . . . . . . 55 6 51 . 16 121 11 59 . 5 . . 50 47 71 32 5 59 50 30 Robots Corrupted 56 | . . . . . . . 1 . 3 . . . . 8 . 9 . . . . 6 . 6 3 5 2 5 8 Combat Hostiles 48 | . . . . . . . 1 . 2 . . . . 7 . 9 . . . . 3 . 6 3 5 2 2 8 Parts Fried 174 | . . . . 1 . . 1 . 18 1 . . . 24 . 23 . 1 . . 15 . 15 11 12 9 27 16 Impact Corruptions 12 | . . . . . . . . . 1 . . . . 2 . . . . . . 1 . . 1 . 3 4 . Robots Melted . | . . . . . . . . . . . . . . . . . . . . . . . . . . . . . Combat Hostiles . | . . . . . . . . . . . . . . . . . . . . . . . . . . . . . Parts Melted 6 | . . . . . . . 1 . . . . . . 1 . 1 . . . . . . 1 1 . . 1 . Heat Transferred 5839 | . . . 200 422 325 74 407 . 450 . 200 . . 670 . 437 . . . . 235 . 944 300 450 . 350 375 Parts Sabotaged 4 | . . . . . . . . . . . . . . . . . . . . . . . . . . . . 4 Parts Stolen . | . . . . . . . . . . . . . . . . . . . . . . . . . . . . . Parts Stripped . | . . . . . . . . . . . . . . . . . . . . . . . . . . . . . Power Chain Reactions 38 | . 1 . 4 3 1 . . . 4 . 2 . . 4 . 2 . . . . 2 . 2 2 5 . 5 1 Missiles Intercepted . | . . . . . . . . . . . . . . . . . . . . . . . . . . . . . Alert | -11 -10 -10 -9 -9 -9 -9 -7 -7 -7 -7 -7 -7 -6 -6 -6 -6 -6 -6 -6 -5 -5 -5 -5 -5 -5 -5 -5 -4 ------- Run | Scr Mat Min Mat Sto Gar Rec Fac Was Fac Low Low Zio Pro Fac Was Fac Low Low Dat Pro Fac Was Fac Ext Cet Arc Hub Fac Peak Influence 1614 | 5 192 161 688 655 1530 789 1162 284 501 . . . . 744 259 1204 . . . . 812 133 515 319 994 520 1022 1614 Initial 1137 | . 3 8 . 290 384 688 1137 284 58 . . . . . 259 . . . . . . 133 . 247 141 397 112 485 Average 377 | 3 84 47 420 507 972 694 936 202 269 . . . . 248 129 387 . . . . 216 67 183 132 602 417 562 898 Maximum Alert Level 5 | . . . 2 2 4 3 4 1 2 . . . . 3 1 4 . . . . 3 . 2 1 3 2 3 5 Low Security (%) 40 | 100 100 100 12 . . . . 40 35 . . . . 38 59 54 . . . . 67 100 68 72 4 . 8 . Level 1 20 | . . . 19 12 6 . . 59 46 . . . . 49 40 . . . . . 4 . 15 27 20 40 9 . Level 2 21 | . . . 67 87 20 45 . . 18 . . . . 6 . 5 . . . . 19 . 15 . 39 59 59 45 Level 3 13 | . . . . . 34 54 81 . . . . . . 5 . 32 . . . . 8 . . . 35 . 22 26 Level 4 4 | . . . . . 39 . 18 . . . . . . . . 6 . . . . . . . . . . . 25 Level 5 . | . . . . . . . . . . . . . . . . . . . . . . . . . . . . 2 High Security . | . . . . . . . . . . . . . . . . . . . . . . . . . . . . . Max Security . | . . . . . . . . . . . . . . . . . . . . . . . . . . . . . Squads Dispatched 100 | . . . 3 5 . . 4 . 12 . 1 . . 17 . 13 . . . . 9 . 16 . . . 10 10 Investigation 12 | . . . 1 . . . . . 2 . . . . 1 . 3 . . . . 1 . 3 . . . 1 . Extermination 30 | . . . . . . . 3 . 5 . . . . 5 . 2 . . . . 5 . 4 . . . 2 4 Reinforcement 32 | . . . 1 2 . . . . 5 . . . . 6 . 3 . . . . 2 . 9 . . . 2 2 Assault 20 | . . . 1 2 . . 1 . . . 1 . . 2 . 3 . . . . 1 . . . . . 5 4 Garrison 6 | . . . . 1 . . . . . . . . . 3 . 2 . . . . . . . . . . . . Intercept . | . . . . . . . . . . . . . . . . . . . . . . . . . . . . . Construction Impeded 10 | . . . 1 . . . . . 1 . . . . 3 . 1 . . . . 1 . 1 . . . 1 1 Haulers Reinforced 7 | . . . . . . . . . 1 . . . . 1 . . . . . . 1 . 3 . . . 1 . Stealth | -11 -10 -10 -9 -9 -9 -9 -7 -7 -7 -7 -7 -7 -6 -6 -6 -6 -6 -6 -6 -5 -5 -5 -5 -5 -5 -5 -5 -4 --------- Run | Scr Mat Min Mat Sto Gar Rec Fac Was Fac Low Low Zio Pro Fac Was Fac Low Low Dat Pro Fac Was Fac Ext Cet Arc Hub Fac Distress Signals 21 | . . . 1 3 1 . . . 3 . . . . 3 . 1 . . . . . . 1 1 2 1 3 1 Communications Jammed 62 | . . . . . . . . . . . . . . . . . . . . . . . 13 . . . 16 33 Distress Signals 56 | . . . . . . . . . . . . . . . . . . . . . . . 7 . . . 16 33 Times Spotted 615 | . 9 8 46 36 36 10 10 6 51 1 26 . 8 58 . 46 . 1 . 2 32 6 40 24 33 17 53 56 Peak Tracking Total 14 | . 2 3 7 7 7 3 2 2 4 1 14 . 4 5 . 6 . 1 . 3 4 2 4 4 10 2 9 5 Tactical Retreats 36 | . 1 . . . 3 . . . 2 . 5 . 4 2 . 4 . . . . 2 . 2 2 1 . 5 3 Traps | -11 -10 -10 -9 -9 -9 -9 -7 -7 -7 -7 -7 -7 -6 -6 -6 -6 -6 -6 -6 -5 -5 -5 -5 -5 -5 -5 -5 -4 ------- Run | Scr Mat Min Mat Sto Gar Rec Fac Was Fac Low Low Zio Pro Fac Was Fac Low Low Dat Pro Fac Was Fac Ext Cet Arc Hub Fac Traps Triggered 48 | . 1 . . 1 8 . 4 . 1 . . . . 8 . 3 . . . . 7 . 6 5 . . 2 2 Indirectly 5 | . . . . . . . . . . . . . . 1 . . . . . . 2 . . . . . 1 1 Trap Hack Attempts . | . . . . . . . . . . . . . . . . . . . . . . . . . . . . . Triggered . | . . . . . . . . . . . . . . . . . . . . . . . . . . . . . Disarmed . | . . . . . . . . . . . . . . . . . . . . . . . . . . . . . Reprogrammed . | . . . . . . . . . . . . . . . . . . . . . . . . . . . . . Reused . | . . . . . . . . . . . . . . . . . . . . . . . . . . . . . Traps Extracted . | . . . . . . . . . . . . . . . . . . . . . . . . . . . . . Installed . | . . . . . . . . . . . . . . . . . . . . . . . . . . . . . Triggered 9 | . . . . . . . . . . 4 1 . . . . . . . . 1 2 . . . . . . 1 Machines | -11 -10 -10 -9 -9 -9 -9 -7 -7 -7 -7 -7 -7 -6 -6 -6 -6 -6 -6 -6 -5 -5 -5 -5 -5 -5 -5 -5 -4 ---------- Run | Scr Mat Min Mat Sto Gar Rec Fac Was Fac Low Low Zio Pro Fac Was Fac Low Low Dat Pro Fac Was Fac Ext Cet Arc Hub Fac Machines Disabled 88 | . . . 6 3 4 2 . . 5 . . . . 10 . 10 . . . . 2 . 6 3 4 1 15 17 Max in Single Turn 8 | . . . 1 1 1 . . . 5 . . . . 2 . 8 . . . . 2 . 1 1 3 1 5 4 Garrison Access 16 | . . . . . . . 1 . 4 . . . . 2 . 2 . . . . 1 . 3 . . . 2 1 Garrison Relay 4 | . . . . . 4 . . . . . . . . . . . . . . . . . . . . . . . Network Hub 1 | . . . . . . . . . . . . . . . . . . . . . . . . . . . 1 . Machines Sabotaged . | . . . . . . . . . . . . . . . . . . . . . . . . . . . . . Garrisons Compromised . | . . . . . . . . . . . . . . . . . . . . . . . . . . . . . Overloaded Fab Kills . | . . . . . . . . . . . . . . . . . . . . . . . . . . . . . Fab Network Shutdowns 2 | . . . . . . . . . . . . . . . . 1 . . . . 1 . . . . . . . Hacking | -11 -10 -10 -9 -9 -9 -9 -7 -7 -7 -7 -7 -7 -6 -6 -6 -6 -6 -6 -6 -5 -5 -5 -5 -5 -5 -5 -5 -4 --------- Run | Scr Mat Min Mat Sto Gar Rec Fac Was Fac Low Low Zio Pro Fac Was Fac Low Low Dat Pro Fac Was Fac Ext Cet Arc Hub Fac Machines Accessed 123 | . 4 . 8 7 . 3 7 . 19 . . . 1 9 . 18 . . 4 . 10 . 10 10 3 . 6 4 Terminals 75 | . 4 . 8 6 . 3 3 . 9 . . . 1 5 . 8 . . . . 4 . 5 10 3 . 4 2 Fabricators 10 | . . . . . . . 1 . 2 . . . . 1 . 4 . . . . 2 . . . . . . . Repair Stations 8 | . . . . . . . 1 . 2 . . . . . . 2 . . . . 1 . 2 . . . . . Recycling Units . | . . . . . . . . . . . . . . . . . . . . . . . . . . . . . Scanalyzers 9 | . . . . . . . 1 . 2 . . . . 1 . 2 . . . . 2 . . . . . . 1 Garrison Access 17 | . . . . 1 . . 1 . 4 . . . . 2 . 2 . . . . 1 . 3 . . . 2 1 Total Hacks 324 | . 8 . 20 18 . 14 16 . 44 . . . 1 24 . 42 . . 27 . 30 . 23 25 6 . 10 16 Successful 165 | . 2 . 11 9 . 2 8 . 23 . . . 1 15 . 17 . . 27 . 16 . 9 8 2 . 5 10 Failed 158 | . 6 . 8 9 . 12 8 . 21 . . . . 9 . 25 . . . . 14 . 14 17 4 . 5 6 Catastrophic 34 | . 1 . 2 2 . 3 3 . 3 . . . . 1 . 6 . . . . 2 . 2 4 2 . 3 . Database Lockouts 1 | . . . 1 . . . . . . . . . . . . . . . . . . . . . . . . . Manual 105 | . 7 . 14 8 . 11 5 . 11 . . . . 11 . 10 . . . . 2 . 8 10 . . 4 4 Terminals 189 | . 8 . 20 16 . 14 6 . 25 . . . 1 14 . 20 . . . . 11 . 12 25 6 . 7 4 Fabricators 26 | . . . . . . . 2 . 4 . . . . 4 . 8 . . . . 8 . . . . . . . Repair Stations 21 | . . . . . . . 4 . 4 . . . . . . 7 . . . . 1 . 5 . . . . . Recycling Units . | . . . . . . . . . . . . . . . . . . . . . . . . . . . . . Scanalyzers 32 | . . . . . . . 3 . 5 . . . . 2 . 3 . . . . 8 . . . . . . 11 Garrison Access 29 | . . . . 2 . . 1 . 6 . . . . 4 . 4 . . . . 2 . 6 . . . 3 1 Terminal Hacks 76 | . 1 . 7 7 . 1 1 . 6 . . . 1 5 . 5 . . 27 . 4 . . 6 2 . 2 1 Record 19 | . . . . . . . . . 2 . . . 1 1 . . . . 11 . . . . 1 1 . 2 . Part Schematic 13 | . . . 1 1 . . . . 1 . . . . 1 . 1 . . 6 . . . . 2 . . . . Robot Schematic 7 | . . . . . . . . . . . . . . . . . . . 7 . . . . . . . . . Robot Analysis 3 | . . . 3 . . . . . . . . . . . . . . . . . . . . . . . . . Prototype ID Bank 4 | . . . . 1 . . . . . . . . . . . . . . 3 . . . . . . . . . Open Door 1 | . . . . . . . . . . . . . . . . . . . . . . . . . 1 . . . Branch Access Points 4 | . . . 1 . . . . . 1 . . . . 1 . 1 . . . . . . . . . . . . Repair Station Index 1 | . . . . . . . . . . . . . . . . 1 . . . . . . . . . . . . Alert Level 1 | . . . . 1 . . . . . . . . . . . . . . . . . . . . . . . . Unreport Threat 11 | . . . . 2 . 1 . . 1 . . . . 1 . . . . . . 4 . . 1 . . . 1 Locate Traps 5 | . . . . . . . 1 . 1 . . . . 1 . 1 . . . . . . . 1 . . . . Hauler Manifests 5 | . 1 . 1 1 . . . . . . . . . . . 1 . . . . . . . 1 . . . . Registered Prototypes 1 | . . . 1 . . . . . . . . . . . . . . . . . . . . . . . . . Zone Layout 1 | . . . . 1 . . . . . . . . . . . . . . . . . . . . . . . . Fabricator Hacks 15 | . . . . . . . 2 . 3 . . . . 2 . 4 . . . . 4 . . . . . . . Load Schematic 9 | . . . . . . . 1 . 2 . . . . 1 . 3 . . . . 2 . . . . . . . Build 6 | . . . . . . . 1 . 1 . . . . 1 . 1 . . . . 2 . . . . . . . Repair Station Hacks 6 | . . . . . . . 1 . 1 . . . . . . 2 . . . . . . 2 . . . . . Scan Component 5 | . . . . . . . 1 . 1 . . . . . . 2 . . . . . . 1 . . . . . Repair 1 | . . . . . . . . . . . . . . . . . . . . . . . 1 . . . . . Recycling Unit Hacks . | . . . . . . . . . . . . . . . . . . . . . . . . . . . . . Scanalyzer 21 | . . . . . . . 2 . 4 . . . . 2 . . . . . . 5 . . . . . . 8 Insert Component 9 | . . . . . . . 1 . 2 . . . . 1 . . . . . . 3 . . . . . . 2 Analyze 12 | . . . . . . . 1 . 2 . . . . 1 . . . . . . 2 . . . . . . 6 Garrison Access Hacks 28 | . . . . 1 . . 1 . 6 . . . . 4 . 4 . . . . 2 . 6 . . . 3 1 Unlock Access 1 | . . . . 1 . . . . . . . . . . . . . . . . . . . . . . . . Seal Access 16 | . . . . . . . 1 . 4 . . . . 2 . 2 . . . . 1 . 3 . . . 2 1 Coupler Status 11 | . . . . . . . . . 2 . . . . 2 . 2 . . . . 1 . 3 . . . 1 . Unauthorized Hacks 19 | . 1 . 4 1 . 1 1 . 3 . . . . 2 . 2 . . . . 1 . 1 2 . . . . Terminals 19 | . 1 . 4 1 . 1 1 . 3 . . . . 2 . 2 . . . . 1 . 1 2 . . . . Track 1 | . . . 1 . . . . . . . . . . . . . . . . . . . . . . . . . Assimilate 2 | . . . 1 1 . . . . . . . . . . . . . . . . . . . . . . . . Botnet 13 | . . . 1 . . 1 1 . 2 . . . . 2 . 2 . . . . 1 . 1 2 . . . . Operators 3 | . 1 . 1 . . . . . 1 . . . . . . . . . . . . . . . . . . . Fabricators . | . . . . . . . . . . . . . . . . . . . . . . . . . . . . . Repair Stations . | . . . . . . . . . . . . . . . . . . . . . . . . . . . . . Recycling Units . | . . . . . . . . . . . . . . . . . . . . . . . . . . . . . Scanalyzers . | . . . . . . . . . . . . . . . . . . . . . . . . . . . . . Garrison Access . | . . . . . . . . . . . . . . . . . . . . . . . . . . . . . Data Cores Recovered 1 | . . . 1 . . . . . . . . . . . . . . . . . . . . . . . . . Used 1 | . . . 1 . . . . . . . . . . . . . . . . . . . . . . . . . Hacking Detections 102 | . 4 . 8 7 . 3 5 . 14 . . . 1 7 . 17 . . . . 9 . 8 9 3 . 5 2 Full Trace Events 8 | . 1 . . . . . . . 1 . . . . 1 . 3 . . . . . . 2 . . . . . Feedback Events . | . . . . . . . . . . . . . . . . . . . . . . . . . . . . . Feedback Blocked . | . . . . . . . . . . . . . . . . . . . . . . . . . . . . . Robot Schematics Acquired 7 | . . . . . . . . . . . . . . . . . . . 7 . . . . . . . . . Robots Built . | . . . . . . . . . . . . . . . . . . . . . . . . . . . . . Matter . | . . . . . . . . . . . . . . . . . . . . . . . . . . . . . Time . | . . . . . . . . . . . . . . . . . . . . . . . . . . . . . Total Robot Build Rating . | . . . . . . . . . . . . . . . . . . . . . . . . . . . . . Part Schematics Acquired 21 | . . . 1 1 . . 1 . 3 . . . . 2 . 1 . . 6 . 2 . . 2 . . . 2 Parts Built 8 | . . . . . . . 1 . 2 . . . . 2 . 1 . . . . 2 . . . . . . . Matter 1663 | . . . . . . . 285 . 212 . . . . 212 . 285 . . . . 669 . . . . . . . Time 641 | . . . . . . . 76 . 106 . . . . 53 . 152 . . . . 254 . . . . . . . Total Part Build Rating 47 | . . . . . . . 5 . 12 . . . . 12 . 5 . . . . 13 . . . . . . . Parts Repaired 1 | . . . . . . . . . . . . . . . . . . . . . . . 1 . . . . . Time 13 | . . . . . . . . . . . . . . . . . . . . . . . 13 . . . . . Parts Recycled . | . . . . . . . . . . . . . . . . . . . . . . . . . . . . . Recycled Matter . | . . . . . . . . . . . . . . . . . . . . . . . . . . . . . Retrieved Matter . | . . . . . . . . . . . . . . . . . . . . . . . . . . . . . Retrieved Components . | . . . . . . . . . . . . . . . . . . . . . . . . . . . . . Parts Scanalyzed 9 | . . . . . . . 1 . 2 . . . . 1 . . . . . . 3 . . . . . . 2 Part Schematics Acquired 8 | . . . . . . . 1 . 2 . . . . 1 . . . . . . 2 . . . . . . 2 Parts Damaged 3 | . . . . . . . . . . . . . . 1 . . . . . . . . . . . . . 2 Bothacking | -11 -10 -10 -9 -9 -9 -9 -7 -7 -7 -7 -7 -7 -6 -6 -6 -6 -6 -6 -6 -5 -5 -5 -5 -5 -5 -5 -5 -4 ------------ Run | Scr Mat Min Mat Sto Gar Rec Fac Was Fac Low Low Zio Pro Fac Was Fac Low Low Dat Pro Fac Was Fac Ext Cet Arc Hub Fac Used RIF Installer 1 | . . . . . 1 . . . . . . . . . . . . . . . . . . . . . . . Robots Hacked 27 | . . . . . . . . 5 3 . . . . . . 1 . . . . 11 5 1 . . . . 1 Non-combat 16 | . . . . . . . . . 3 . . . . . . 1 . . . . 11 . . . . . . 1 Combat 11 | . . . . . . . . 5 . . . . . . . . . . . . . 5 1 . . . . . Robot Hacks Applied 30 | . . . . . . . . 5 4 . . . . . . 1 . . . . 12 6 1 . . . . 1 parse_system 5 | . . . . . . . . . 2 . . . . . . 1 . . . . 1 . 1 . . . . . find_chute 12 | . . . . . . . . . . . . . . . . . . . . . 11 . . . . . . 1 purge_threat 1 | . . . . . . . . . 1 . . . . . . . . . . . . . . . . . . . ignore_targets 11 | . . . . . . . . 5 . . . . . . . . . . . . . 6 . . . . . . streamctrl_low 1 | . . . . . . . . . 1 . . . . . . . . . . . . . . . . . . . Relay Couplers Released 18 | . . . . . 16 . . . . . . . . 2 . . . . . . . . . . . . . . Machine Destruction 18 | . . . . . 16 . . . . . . . . 2 . . . . . . . . . . . . . . Attached 2 | . . . . . . . . 1 . . . . . . . . . . . . . 1 . . . . . . Robots Rewired 16 | . . . . . 7 . . . . . 2 . . . . . . . . . . . 2 5 . . . . Allies Hacked 1 | . . . . . . . . . . . . . . . . . . . . . 1 . . . . . . . Hacks Repelled . | . . . . . . . . . . . . . . . . . . . . . . . . . . . . . Allies | -11 -10 -10 -9 -9 -9 -9 -7 -7 -7 -7 -7 -7 -6 -6 -6 -6 -6 -6 -6 -5 -5 -5 -5 -5 -5 -5 -5 -4 -------- Run | Scr Mat Min Mat Sto Gar Rec Fac Was Fac Low Low Zio Pro Fac Was Fac Low Low Dat Pro Fac Was Fac Ext Cet Arc Hub Fac Total Allies 34 | . . 3 1 2 7 . . . 1 . 2 . . . . . . . . 1 3 . 2 12 . . . . Largest Group 8 | . . 3 3 2 5 2 2 . 1 . 2 . . . . . . . . . 3 . 1 8 8 2 . . Highest-Rated Group 346 | . . 40 40 62 114 76 76 . 26 . 52 . . . . . . . . . 94 . 49 346 346 176 . . Highest-Rated Ally 156 | . . 16 16 31 38 38 38 . 26 . 32 . . . . . . . . . 94 . 49 156 156 156 . . Total Orders 5 | . . . . . . . . . . . . . . . . . . . . . . . 1 . 4 . . . STAY 3 | . . . . . . . . . . . . . . . . . . . . . . . 1 . 2 . . . FOLLOW 1 | . . . . . . . . . . . . . . . . . . . . . . . . . 1 . . . AID 1 | . . . . . . . . . . . . . . . . . . . . . . . . . 1 . . . Ally Attacks 313 | . . 28 23 40 54 40 1 . . . 1 . . . . . . . . . 31 . 10 17 67 1 . . Total Damage 5770 | . . 309 211 652 1342 617 20 . . . 59 . . . . . . . . . 492 . 257 398 1388 25 . . Kills 90 | . . 5 5 10 25 16 . . . . . . . . . . . . . . 1 . 1 5 22 . . . Allies Corrupted 1 | . . . . . . . . . . . . . . . . . . . . . 1 . . . . . . . Allies Melted 1 | . . . . . . . . . . . . . . . . . . . . . 1 . . . . . . . Intel | -11 -10 -10 -9 -9 -9 -9 -7 -7 -7 -7 -7 -7 -6 -6 -6 -6 -6 -6 -6 -5 -5 -5 -5 -5 -5 -5 -5 -4 ------- Run | Scr Mat Min Mat Sto Gar Rec Fac Was Fac Low Low Zio Pro Fac Was Fac Low Low Dat Pro Fac Was Fac Ext Cet Arc Hub Fac Robot Analysis Total 3 | . . . 3 . . . . . . . . . . . . . . . . . . . . . . . . . Derelict Logs Recovered 9 | . . 2 . . . . . . . 1 . . 1 . . . 2 2 . 1 . . . . . . . . Drone Launches . | . . . . . . . . . . . . . . . . . . . . . . . . . . . . . Drone Recoveries . | . . . . . . . . . . . . . . . . . . . . . . . . . . . . . Exploration | -11 -10 -10 -9 -9 -9 -9 -7 -7 -7 -7 -7 -7 -6 -6 -6 -6 -6 -6 -6 -5 -5 -5 -5 -5 -5 -5 -5 -4 ------------- Run | Scr Mat Min Mat Sto Gar Rec Fac Was Fac Low Low Zio Pro Fac Was Fac Low Low Dat Pro Fac Was Fac Ext Cet Arc Hub Fac Turns Passed 57841 | 18 523 865 1727 1420 1917 471 2035 674 5270 1362 2758 7896 957 4583 980 3649 784 1266 150 478 3968 789 4439 2843 1063 630 2493 1833 Spaces Moved 22153 | 8 351 628 895 643 807 222 1157 292 2351 581 567 599 509 1635 468 1566 348 691 84 253 1662 277 1749 1254 527 272 1079 678 Core 385 | . . . . . . . . . . . . 385 . . . . . . . . . . . . . . . . Treads 18955 | . . . 324 551 807 222 149 137 2351 581 567 214 509 1635 468 1566 348 691 84 253 1662 277 1749 1254 527 272 1079 678 Legs . | . . . . . . . . . . . . . . . . . . . . . . . . . . . . . Wheels 2813 | 8 351 628 571 92 . . 1008 155 . . . . . . . . . . . . . . . . . . . . Hover . | . . . . . . . . . . . . . . . . . . . . . . . . . . . . . Flight . | . . . . . . . . . . . . . . . . . . . . . . . . . . . . . Fastest Speed 100 | 100 100 120 120 130 200 200 130 130 180 180 160 180 180 180 160 180 180 180 180 180 180 180 180 180 160 160 160 160 Average Speed 205 | 100 106 120 154 177 200 200 138 153 180 180 179 1317 180 184 179 180 180 180 180 180 180 180 180 180 179 161 175 180 Slowest Speed 1950 | 100 120 120 200 200 200 200 220 180 240 180 180 1950 180 200 180 180 180 180 180 180 180 180 180 180 180 180 180 200 Overloaded Moves . | . . . . . . . . . . . . . . . . . . . . . . . . . . . . . Propulsion Burnouts . | . . . . . . . . . . . . . . . . . . . . . . . . . . . . . Robots Hopped . | . . . . . . . . . . . . . . . . . . . . . . . . . . . . . Cave-ins Triggered 2 | . . . . . . . . . . . . . . . . . . . . . 1 . . . . . 1 . Exploration Rate (%) 63 | 3 62 97 75 92 86 61 23 99 52 59 66 13 77 39 96 48 56 80 70 44 41 91 47 97 85 96 69 19 Regions Visited 28 Branch Regions 15 Pre-discovered Areas 5 | . . 2 . . . . . . . . . . . . . . 2 . 1 . . . . . . . . . Known Exits Taken 17 | . . . 1 1 . . . . 1 1 1 1 1 . . 1 1 1 1 1 . . 1 1 1 1 1 . Unknown Exits Taken 4 | 1 1 1 . . . 1 . . . . . . . . . . . . . . . . . . . . . . Scrap Searched 12 | . . 1 . . . . . . . 1 1 . 4 . . . 3 2 . . . . . . . . . . Spaces Dug 506 | . 2 2 2 2 . . 10 . 57 . . . . 56 . 66 . 2 . 2 104 . 126 33 . . 17 25 Terrain Destroyed 1514 | . 9 2 15 37 . . 10 3 158 . 48 . 25 107 . 92 . 2 . 2 155 . 177 56 31 12 273 300 Melee 111 | . 2 2 2 2 . . 10 . 57 . . . . 32 . 4 . . . . . . . . . . . . Projectile 654 | . . . . 2 . . . 3 1 . . . . 26 . 66 . 2 . 2 110 . 146 42 . 12 98 144 AOE 749 | . 7 . 13 33 . . . . 100 . 48 . 25 49 . 22 . . . . 45 . 31 14 31 . 175 156 Terrain Rammed . | . . . . . . . . . . . . . . . . . . . . . . . . . . . . . Walls Destroyed . | . . . . . . . . . . . . . . . . . . . . . . . . . . . . . Machines Disabled . | . . . . . . . . . . . . . . . . . . . . . . . . . . . . . Actions | -11 -10 -10 -9 -9 -9 -9 -7 -7 -7 -7 -7 -7 -6 -6 -6 -6 -6 -6 -6 -5 -5 -5 -5 -5 -5 -5 -5 -4 --------- Run | Scr Mat Min Mat Sto Gar Rec Fac Was Fac Low Low Zio Pro Fac Was Fac Low Low Dat Pro Fac Was Fac Ext Cet Arc Hub Fac Total 31657 | 14 440 684 1130 846 1066 234 1480 401 3060 891 2235 602 537 2898 583 2179 504 708 83 273 2400 451 2696 1695 624 421 1466 1056 Wait 5833 | . 34 23 62 94 74 5 133 9 348 304 1568 . 13 894 64 378 152 9 . 18 437 55 568 198 21 97 165 110 Move 22126 | 7 350 627 894 643 805 221 1157 291 2350 580 566 598 508 1635 467 1565 347 690 83 252 1661 276 1748 1253 526 271 1077 678 Hop . | . . . . . . . . . . . . . . . . . . . . . . . . . . . . . Pick Up 247 | . 11 2 21 11 8 . 25 6 26 1 2 2 3 32 8 11 2 1 . . 13 8 10 7 14 2 7 14 Fast Attach 94 | 1 2 . 6 5 1 . 4 2 10 . 2 1 . 8 8 3 . . . . 5 6 7 2 6 6 4 5 Attach 83 | 2 1 1 3 1 1 . 7 1 4 1 13 1 2 5 . 4 . . . . 4 . 4 . 2 2 7 17 Detach 36 | . 1 . 1 . 1 . 5 . . . 9 . . 3 . 4 . . . . 2 . 4 . . 1 3 2 Swap 716 | . 5 3 30 21 16 . 42 12 100 2 4 . 3 80 5 58 3 3 . 1 64 19 80 47 13 7 42 56 Drop 334 | 2 4 1 37 22 15 . 28 14 35 . . . . 38 18 13 . 1 . . 14 19 15 7 20 7 15 9 Fire 1755 | 2 29 24 73 40 35 8 41 66 116 3 41 . 8 154 13 137 . 4 . 2 195 68 257 97 22 25 132 163 Melee 144 | . 3 3 3 5 . . 22 . 66 . . . . 38 . 4 . . . . . . . . . . . . Ram . | . . . . . . . . . . . . . . . . . . . . . . . . . . . . . Kick . | . . . . . . . . . . . . . . . . . . . . . . . . . . . . . Crush 38 | . . . . 2 . . . . 3 . . . . 2 . 2 . . . . 4 . 3 4 . 3 13 2 Escape Stasis 55 | . . . . 2 12 . 16 . 2 . . . . 9 . . . . . . 1 . . 12 . . 1 . Rewire 196 | . . . . . 98 . . . . . 30 . . . . . . . . . . . . 68 . . . . Trap . | . . . . . . . . . . . . . . . . . . . . . . . . . . . . . Miscellaneous . | . . . . . . . . . . . . . . . . . . . . . . . . . . . . . Route ------- -11/Scrapyard -10/Materials (discovered 3 exits: *Mat / [*Min x2]) -10/Mines (discovered 2 exits: *Mat x2) -9/Materials (discovered 5 exits: [*Mat x3] / *Min / *Sto) -9/Storage (discovered 3 exits: [*Mat] / *Rec / Gar) -9/Garrison (discovered 3 exits: *Rec x3) -9/Recycling -7/Factory (discovered 2 exits: *Fac / *Low) -7/Waste -7/Factory (discovered 5 exits: *Fac x3 / *Low x2) -7/Lower Caves -7/Lower Caves -7/Zion -6/Proximity Caves -6/Factory (discovered 3 exits: *Fac / Low x2) -6/Waste -6/Factory (discovered 4 exits: *Fac x2 / *Low x2) -6/Lower Caves -6/Lower Caves -6/Data Miner -5/Proximity Caves -5/Factory (discovered 3 exits: *Upp x2 / *Ext) -5/Waste -5/Factory (discovered 2 exits: *Upp / *Ext) -5/Extension (discovered 2 exits: *Fac / *Cet) -5/Cetus (discovered 2 exits: *Fac / *Arc) -5/Archives (discovered 3 exits: *Fac / *Hub x2) -5/Hub_04(d) (discovered 2 exits: *Fac x2) -4/Factory (discovered 1 exit: *Upp) History --------- Turn | Location | Event 10 | -11/Scrapyard | Discovered new exit (range 3) 19 | -11/Scrapyard | Entered Materials 149 | -10/Materials | Discovered new exit (range 6) 181 | -10/Materials | Discovered new exit (range 14) 274 | -10/Materials | Discovered new exit (range 13) 305 | -10/Materials | Build established: Mutant 542 | -10/Materials | Entered Mines 557 | -10/Mines | Discovered new exit (range 13) 692 | -10/Mines | Learned location of Zion (-7) 723 | -10/Mines | Learned Materials terminal intel 808 | -10/Mines | Assisted by bots powering up and referring to "LRC-V3" 876 | -10/Mines | Learned location of Storage (-9) 899 | -10/Mines | Discovered new exit (range 5) 1272 | -10/Mines | Found a damaged Exp. Sensor Array with a note attached 1274 | -10/Mines | Found Prototype Device 1407 | -10/Mines | Entered Materials 1407 | -9/Materials | Accompanied by 3 allies 1407 | -9/Materials | Evolved 2 slots: Utility x2 1408 | -9/Materials | Loaded intel: 12 terminal locations 1720 | -9/Materials | Discovered new exit (range 16) 1889 | -9/Materials | Destroyed 8 combat bots 2212 | -9/Materials | Discovered new exit (range 10) 2307 | -9/Materials | Build established: Scavenger-Mutant 2421 | -9/Materials | Discovered new exit (range 15) 2496 | -9/Materials | Central database locked down 2796 | -9/Materials | Discovered new exit (range 16) 2892 | -9/Materials | Identified exit to Mines 2892 | -9/Materials | Identified exit to Storage 3007 | -9/Materials | First assault squad dispatched 3094 | -9/Materials | Build established: Mutant 3134 | -9/Materials | Entered Storage 3479 | -9/Storage | Met a pair of Derelict thieves 3626 | -9/Storage | Destroyed 8 combat bots 3678 | -9/Storage | Used back door to open Recycling access 3678 | -9/Storage | Discovered new exit (range 5) 4189 | -9/Storage | Garrison activated, responded to threat 4409 | -9/Storage | Discovered new exit (range 16) 4541 | -9/Storage | Build established: Hauler-Mutant 4543 | -9/Storage | Identified exit to Garrison 4554 | -9/Storage | Entered Garrison 4554 | -9/Garrison | Accompanied by 1 ally 4668 | -9/Garrison | Triggered checkpoint 5144 | -9/Garrison | Triggered checkpoint 5194 | -9/Garrison | Triggered checkpoint 5283 | -9/Garrison | Discovered new exit (range 13) 5321 | -9/Garrison | Installed Relay Interface Framework 5411 | -9/Garrison | Garrison Relay disabled 5556 | -9/Garrison | Triggered checkpoint 5646 | -9/Garrison | Discovered new exit (range 14) 5710 | -9/Garrison | Triggered checkpoint 5767 | -9/Garrison | Garrison Relay disabled 5995 | -9/Garrison | Triggered checkpoint 6096 | -9/Garrison | Discovered new exit (range 8) 6300 | -9/Garrison | Garrison Relay disabled 6398 | -9/Garrison | Triggered checkpoint 6471 | -9/Garrison | Entered Recycling 6471 | -9/Recycling | Accompanied by 2 allies 6487 | -9/Recycling | Spotter reported a threat 6495 | -9/Recycling | Spotter reported a threat 6533 | -9/Recycling | Spotter reported a threat 6543 | -9/Recycling | Spotter reported a threat 6550 | -9/Recycling | Spotter reported a threat 6584 | -9/Recycling | Spotter reported a threat 6585 | -9/Recycling | Core integrity fell below 50% 6629 | -9/Recycling | Spotter reported a threat 6668 | -9/Recycling | Spotter reported a threat 6668 | -9/Recycling | Spotter reported a threat 6671 | -9/Recycling | Spotter reported a threat 6726 | -9/Recycling | Spotter reported a threat 6738 | -9/Recycling | Spotter reported a threat 6763 | -9/Recycling | Spotter reported a threat 6772 | -9/Recycling | Spotter reported a threat 6779 | -9/Recycling | Spotter reported a threat 6808 | -9/Recycling | Spotter reported a threat 6921 | -9/Recycling | Discovered new exit (range 11) 6942 | -9/Recycling | Entered Factory 6942 | -7/Factory | Accompanied by 2 allies 6942 | -7/Factory | Evolved 4 slots: Propulsion x1, Utility x3 7107 | -7/Factory | Discovered new exit (range 7) 7431 | -7/Factory | Discovered new exit (range 12) 7982 | -7/Factory | Identified Exp. Sensor Array 8827 | -7/Factory | Fabricated Exp. Sensor Array (x1) 8942 | -7/Factory | First assault squad dispatched 8977 | -7/Factory | Sucked down chute 8977 | -7/Factory | Entered Waste 9027 | -7/Waste | Spotted C-40 Crusher 9027 | -7/Waste | Spotted C-40 Crusher 9100 | -7/Waste | Spotted C-40 Crusher 9115 | -7/Waste | Destroyed C-40 Crusher 9182 | -7/Waste | Destroyed C-40 Crusher 9188 | -7/Waste | Spotted C-40 Crusher 9213 | -7/Waste | Destroyed C-40 Crusher 9222 | -7/Waste | Spotted C-40 Crusher 9227 | -7/Waste | Spotted C-40 Crusher 9271 | -7/Waste | Destroyed C-40 Crusher 9312 | -7/Waste | Destroyed C-40 Crusher 9319 | -7/Waste | Found Damper Plating 9412 | -7/Waste | Found Damper Plating 9597 | -7/Waste | Discovered new exit (range 12) 9651 | -7/Waste | Entered Factory 11890 | -7/Factory | Discovered new exit (range 12) 12556 | -7/Factory | Discovered new exit (range 14) 13161 | -7/Factory | Fabricated Hvy. Treads? 13315 | -7/Factory | Identified exit to Factory 13867 | -7/Factory | Identified exit to Lower Caves 13867 | -7/Factory | Discovered exit to Factory (range 8) 14921 | -7/Factory | Entered Lower Caves 15174 | -7/Lower Caves | Learned 4 Factory zone layouts 16255 | -7/Lower Caves | Discovered new exit (range 7) 16282 | -7/Lower Caves | Identified exit to Lower Caves 16283 | -7/Lower Caves | Entered another Lower Caves area 16425 | -7/Lower Caves | Attracted the attention of an 0b10 outpost 16523 | -7/Lower Caves | Lost 7 parts (3u4w) 17270 | -7/Lower Caves | Build established: Hauler-Skirmisher 17873 | -7/Lower Caves | Spotted B-75 Beast 18978 | -7/Lower Caves | Discovered new exit (range 14) 19039 | -7/Lower Caves | Identified exit to Zion 19041 | -7/Lower Caves | Entered Zion 19266 | -7/Zion | Discovered new exit (range 15) 19275 | -7/Zion | Build established: Hauler-Mutant 26935 | -7/Zion | Identified exit to Proximity Caves 26937 | -7/Zion | Entered Proximity Caves 27319 | -6/Proximity Caves | Discovered exit to Factory (range 16) 27326 | -6/Proximity Caves | Learned Factory non-interactive machine intel 27894 | -6/Proximity Caves | Entered Factory 27894 | -6/Factory | Evolved 2 slots: Propulsion x1, Utility x1 27896 | -6/Factory | Loaded intel: 188 non-interactive machine locations 29888 | -6/Factory | Found Prototype Processor 30061 | -6/Factory | Garrison activated, responded to threat 30327 | -6/Factory | Identified Exp. Terrain Scan Processor 30353 | -6/Factory | Found Prototype Processor 30360 | -6/Factory | Identified Exp. Targeting Computer 30612 | -6/Factory | Fabricated Hvy. Treads? 31315 | -6/Factory | Discovered new exit (range 6) 31427 | -6/Factory | Identified exit to Lower Caves 31778 | -6/Factory | Identified exit to Factory 32094 | -6/Factory | First assault squad dispatched 32477 | -6/Factory | Sucked down chute 32477 | -6/Factory | Entered Waste 32477 | -6/Waste | The area was eerily silent 32607 | -6/Waste | Found Damper Plating 32617 | -6/Waste | Found Damper Plating 33148 | -6/Waste | Found Damper Plating 33198 | -6/Waste | Discovered new exit (range 12) 33455 | -6/Waste | Identified exit to Factory 33457 | -6/Waste | Entered Factory 33722 | -6/Factory | Garrison activated, responded to threat 35137 | -6/Factory | Fabricated Exp. Sensor Array? 35457 | -6/Factory | Local fabrication network quarantined 35557 | -6/Factory | First assault squad dispatched 35690 | -6/Factory | Destroyed 8 combat bots 35780 | -6/Factory | Discovered exit to Factory (range 15) 36820 | -6/Factory | Discovered exit to Factory (range 15) 37106 | -6/Factory | Entered Lower Caves 37576 | -6/Lower Caves | Encountered a Warlord checkpoint 37830 | -6/Lower Caves | Discovered new exit (range 14) 37852 | -6/Lower Caves | Identified exit to Lower Caves 37890 | -6/Lower Caves | Entered another Lower Caves area 38064 | -6/Lower Caves | Encountered a Warlord checkpoint 38142 | -6/Lower Caves | Learned Factory emergency access door positions 38644 | -6/Lower Caves | Attracted the attention of an 0b10 checkpoint 38687 | -6/Lower Caves | Discovered new exit (range 5) 38696 | -6/Lower Caves | Identified exit to Data Miner 39156 | -6/Lower Caves | Entered Data Miner 39156 | -6/Data Miner | Discovered new exit (range 6) 39191 | -6/Data Miner | Met Data Miner 39230 | -6/Data Miner | Learned location of Section 7 (-3) 39230 | -6/Data Miner | Acquired the access code to Warlord's prototype stash 39259 | -6/Data Miner | Received God Mode back door access code from Data Miner 39304 | -6/Data Miner | Identified exit to Proximity Caves 39306 | -6/Data Miner | Entered Proximity Caves 39330 | -5/Proximity Caves | Learned 4 Factory zone layouts 39778 | -5/Proximity Caves | Discovered exit to Factory (range 4) 39782 | -5/Proximity Caves | Escorted by Enhanced Grunt 39784 | -5/Proximity Caves | Entered Factory 39784 | -5/Factory | Accompanied by 1 ally 39784 | -5/Factory | Evolved 2 slots: Utility x2 39785 | -5/Factory | Identified exit to Upper Caves 40289 | -5/Factory | Allied Derelicts emerged from ambush trap array 40470 | -5/Factory | Discovered new exit (range 6) 40477 | -5/Factory | Identified exit to Extension 41612 | -5/Factory | Crushed by falling debris 42201 | -5/Factory | Fabricated Exp. Sensor Array? 42207 | -5/Factory | Fabricated Exp. Transmission Jammer (x1) 42397 | -5/Factory | Local fabrication network quarantined 42601 | -5/Factory | Incoming investigation squad redirected 42623 | -5/Factory | Discovered exit to Upper Caves (range 15) 43384 | -5/Factory | First assault squad dispatched 43405 | -5/Factory | Incoming assault squad redirected 43752 | -5/Factory | Sucked down chute 43752 | -5/Factory | Entered Waste 43767 | -5/Waste | EMP discharged 43801 | -5/Waste | Spotted C-40 Crusher 43867 | -5/Waste | EMP discharged 43879 | -5/Waste | Destroyed C-40 Crusher 43882 | -5/Waste | Spotted C-40 Crusher 43900 | -5/Waste | Found Damper Plating 43967 | -5/Waste | EMP discharged 43985 | -5/Waste | Destroyed C-40 Crusher 44067 | -5/Waste | EMP discharged 44117 | -5/Waste | Destroyed C-40 Crusher 44137 | -5/Waste | Found Damper Plating 44167 | -5/Waste | EMP discharged 44171 | -5/Waste | Destroyed C-40 Crusher 44195 | -5/Waste | Destroyed C-40 Crusher 44200 | -5/Waste | Spotted C-40 Crusher 44202 | -5/Waste | Found Damper Plating 44267 | -5/Waste | EMP discharged 44315 | -5/Waste | Destroyed C-40 Crusher 44334 | -5/Waste | Found Damper Plating 44367 | -5/Waste | EMP discharged 44412 | -5/Waste | Discovered new exit (range 15) 44467 | -5/Waste | EMP discharged 44539 | -5/Waste | Identified exit to Factory 44541 | -5/Waste | Entered Factory 44778 | -5/Factory | Incoming investigation squad redirected 46881 | -5/Factory | Incoming investigation squad redirected 47624 | -5/Factory | Discovered exit to Upper Caves (range 7) 48630 | -5/Factory | Repaired Hcp. Storage Unit 48946 | -5/Factory | Discovered exit to Extension (range 12) 48980 | -5/Factory | Entered Extension 50555 | -5/Extension | Spotted B-75 Beast 50580 | -5/Extension | Disrupted transfer network 50583 | -5/Extension | Destroyed B-75 Beast 50599 | -5/Extension | Spotted B-75 Beast 50623 | -5/Extension | Destroyed B-75 Beast 50866 | -5/Extension | Discovered new exit (range 16) 50868 | -5/Extension | Discovered new exit (range 15) 50894 | -5/Extension | Identified exit to Cetus 51153 | -5/Extension | Rescued A7 51337 | -5/Extension | Rescued a captive Derelict 51338 | -5/Extension | Rescued a captive Derelict 51464 | -5/Extension | Rescued a captive Derelict 51466 | -5/Extension | Rescued a captive Derelict 51528 | -5/Extension | Rescued a captive Derelict 51573 | -5/Extension | Rescued a captive Derelict 51823 | -5/Extension | Entered Cetus 51823 | -5/Cetus | Accompanied by 8 allies (A7) 51828 | -5/Cetus | Acquired a Cetus Manufacturing Module code from A7 51854 | -5/Cetus | Spotted Cetus Guard 51854 | -5/Cetus | Spotted Cetus Guard 51856 | -5/Cetus | Spotted Cetus Guard 51862 | -5/Cetus | Allies destroyed Cetus Guard 51866 | -5/Cetus | Spotted Cetus Guard 51870 | -5/Cetus | Destroyed Cetus Guard 51870 | -5/Cetus | Allies destroyed Cetus Guard 51871 | -5/Cetus | Destroyed Cetus Guard 52433 | -5/Cetus | Escorted A7 to Cetus Mainframe 52474 | -5/Cetus | Discovered new exit (range 15) 52511 | -5/Cetus | Spotted Cetus Guard 52513 | -5/Cetus | Spotted Cetus Guard 52513 | -5/Cetus | Spotted Cetus Guard 52520 | -5/Cetus | Allies destroyed Cetus Guard 52522 | -5/Cetus | Destroyed Cetus Guard 52523 | -5/Cetus | Destroyed Cetus Guard 52524 | -5/Cetus | Destroyed Cetus Guard 52545 | -5/Cetus | Destroyed 7 combat bots 52545 | -5/Cetus | Discovered new exit (range 16) 52562 | -5/Cetus | Met Revision 17 52657 | -5/Cetus | Identified exit to Factory 52801 | -5/Cetus | Cetus Manufacturing Module disabled 52855 | -5/Cetus | Build established: Scavenger-Mutant 52879 | -5/Cetus | Identified exit to Archives 52886 | -5/Cetus | Entered Archives 52886 | -5/Archives | Accompanied by 2 allies (A7) 52891 | -5/Archives | Received a hacking code to weaken MAIN.C 53123 | -5/Archives | Unable to access archive contents 53166 | -5/Archives | Discovered new exit (range 14) 53185 | -5/Archives | Identified exit to Hub_04(d) 53249 | -5/Archives | Discovered exit to Hub_04(d) (range 16) 53294 | -5/Archives | Discovered exit to Factory (range 16) 53516 | -5/Archives | Entered Hub_04(d) 53521 | -5/Hub_04(d) | Discovered exit to Factory (range 5) 55016 | -5/Hub_04(d) | First assault squad dispatched 55291 | -5/Hub_04(d) | Discovered exit to Factory (range 5) 55339 | -5/Hub_04(d) | Incoming assault squad redirected 55457 | -5/Hub_04(d) | Network Hub disabled 55622 | -5/Hub_04(d) | Spotted Lightning 55622 | -5/Hub_04(d) | Spotted Lightning 55641 | -5/Hub_04(d) | Incoming assault squad redirected 55648 | -5/Hub_04(d) | Spotted Lightning 55705 | -5/Hub_04(d) | Destroyed Lightning 55726 | -5/Hub_04(d) | Destroyed Lightning 55729 | -5/Hub_04(d) | Destroyed Lightning 55744 | -5/Hub_04(d) | Found Prototype Energy Cannon 55746 | -5/Hub_04(d) | Identified EMDS 55768 | -5/Hub_04(d) | Found EMDS 55826 | -5/Hub_04(d) | Crushed by falling debris 55942 | -5/Hub_04(d) | Incoming assault squad redirected 55966 | -5/Hub_04(d) | Incoming assault squad redirected 56009 | -5/Hub_04(d) | Entered Factory 56009 | -4/Factory | Evolved 2 slots: Power x1, Utility x1 56259 | -4/Factory | First assault squad dispatched 56283 | -4/Factory | Incoming assault squad redirected 57370 | -4/Factory | Discovered new exit (range 11) 57414 | -4/Factory | Incoming assault squad redirected 57478 | -4/Factory | Identified exit to Upper Caves 57729 | -4/Factory | Lost 3 parts (1n2u) 57842 | -4/Factory | Self-destructed Last Messages --------------- 57800_ U-05 Engineer lays Concrete. 57802_ The unstable cave ceiling collapses. 57802_ U-05 Engineer lays Concrete. 57808_ Acquired 112 matter. 57809_ U-05 Engineer lays Concrete. 57810_ PNU#D#RLGH L3ZZ=VMU8L0J 57810_ U-05 Engineer lays Concrete. 57810_ K-01 Serf collects debris. 57812_ U-05 Engineer lays Concrete. 57821_ P-70 Sage resets M-28 Smith, system corruption cleaned. 57828_ Terminal disabled. 57833_ U-05 Engineer builds a Door. 57833_ U-05 Engineer builds a Wall. 57837_ U-05 Engineer lays Concrete. 57839_ K-01 Serf collects debris. 57839_ U-05 Engineer builds a Wall. 57839_ U-05 Engineer lays Concrete. 57842_ System corrupted: Matter fused (-8). 57842_ K-01 Serf collects debris. 57842_ U-05 Engineer lays Concrete. Map ----- +----------------------------------------------------+ | ???????????# "R # =/ #! ??? | | ???????????# """ # ! # ??? | | ???????????# """ !# = ##+######???###?????? | | ???????????# # # #???????????? | | ???????????##### # # """ #???????????? | | ??????????????# # [% # """ / #???????????? | | ???????????? %%%* % # """ #???????????? | | ????????? % + = #???????????? | | ????????? !% # = #???????????? | | ?????????# ### # " " #???????????? | | ????????! # ## ## "Y" #???????????? | | ????????? # ?# ## ! """ #???????????? | | ?????????? # ## # # #######???????????? | | ??????????! # # ### #?????????????????? | | ????????! # # ### #?????????????????? | | ???????# # # #?###?????????????????? | | ???????# ! # # i #?##############??????? | | ???????#! # # k #?# #??????? | | ???????#! # # #?# ""#??????? | | ???????#% # ## ### ""#??????? | | ???????# # ##### ;;# m # G#??????? | | ?????? u # ""#??????? | | ?????? # T # ! ""#??????? | | ????? + % / #??????? | | ???????#= % % #% """" #??????? | | ???????# u p @ # """ #??????? | | ???????# # #####/# # ! # """ #??????? | | ???????# ######### """" #??????? | | ???????# #?????## !#??????? | | ??? # ## # ! #?????# #############??????? | | ???? ### ##????# ##??????????????????? | | ???????# !%+ ]###??# #????????????????????? | | ???????# #### ###??##?????????????????????? | | ???????????## #?????????????????????????? | | ?????????#### ! #?????????????????????????? | | ?????????# # # #?????????????????????????? | | ?????????#### #*# # ##?????????????????????????? | | ????????????# # #??????????????????????????? | | ????????????###### ###??????????????????????????? | | ????????????????## ##????????????????????????????? | | ?????????????????###?????????????????????????????? | | ?????????????????????????????????????????????????? | | ?????????????????????????????????????????????????? | | ?????????????????????????????????????????????????? | | ?????????????????????????????????????????????????? | | ?????????????????????????????????????????????????? | | ?????????????????????????????????????????????????? | | ?????????????????????????????????????????????????? | | ?????????????????????????????????????????????????? | | ?????????????????????????????????????????????????? | +----------------------------------------------------+ Best States ------------- Heat Dissipation 86 Energy Generation 45 Energy Capacity 1000 Matter Stores 300 Matter Capacity 300 Sight Range 16 Robot Scan Range 30 Terrain Scan Range 20 Terrain Scan Density 10 Jamming Range 22 Armor Coverage 2850 Resistance: KI 30 Resistance: TH 10 Resistance: EM 90 Weapon Cycling 20 Evasion (%) 40 Recoil Reduction 4 Particle Charging 15 Kinecelleration 40 Relay Coupler Types 26 Relay Coupler Value 1 Item Schematics ----------------- Hcp. Storage Unit | -9/Materials | Hacked System Shield | -9/Storage | Hacked Exp. Sensor Array | -7/Factory | Scanalyzed Hvy. Treads | -7/Factory | Scanalyzed Weapon Cycler | -7/Factory | Scanalyzed Imp. Field Recycling Unit | -7/Factory | Hacked F-cell Engine | -6/Factory | Scanalyzed Power Sword | -6/Factory | Hacked Imp. Weapon Cycler | -6/Factory | Hacked Combat Drone Bay | -6/Data Miner | Free Lgt. Regenerative Plating | -6/Data Miner | Free Exp. Cesium-ion Thruster | -6/Data Miner | Free Tactical Coordination Suite | -6/Data Miner | Free Exp. Transmission Jammer | -6/Data Miner | Free Cloaking Device | -6/Data Miner | Free Imp. Heavy Armor Plating | -5/Factory | Scanalyzed Adv. Targeting Computer | -5/Factory | Scanalyzed Adv. Force Field | -5/Extension | Hacked Adv. Hacking Suite | -5/Extension | Hacked Centrium Heavy Treads | -4/Factory | Scanalyzed Imp. KE Penetrator | -4/Factory | Scanalyzed Robot Schematics ------------------ S-27 Virus | -6/Data Miner | Free G-50 Soldier | -6/Data Miner | Free G-67 Veteran | -6/Data Miner | Free X-72 Disruptor | -6/Data Miner | Free P-70 Sage | -6/Data Miner | Free I-36 Angel | -6/Data Miner | Free I-47 Archangel | -6/Data Miner | Free Fabricated ------------ Exp. Sensor Array | x1 | -7/Factory Hvy. Treads | x2 | -7/Factory Hvy. Treads | x2 | -6/Factory Exp. Sensor Array | x1 | -6/Factory Exp. Sensor Array | x1 | -5/Factory Exp. Transmission Jammer | x1 | -5/Factory Alien Tech Used ----------------- None Achievements -------------- Generalissimo Main Advantage Prison Break Revising The Future Short-term Sacrifices Turtlemind \\IAMDERELICT Challenges ------------ None Game ------ Seed ParticleAlertMatter Manual? 0 Play Time 08:33:47 Cumulative 101.7 hours Start 2020.11.08 @ 23:06:08 End 2020.11.09 @ 21:54:25 Sessions 1 Manual Loads 0 Difficulty Rogue Special Mode Halloween2020/ForbiddenLore Game No. 57 Rogue 57 Adventurer 0 Explorer 0 Win Type - Total 1 Types 1/0/0/0/0/0/0/0/0 Lore% 38 Gallery% 48 Achievement% 41 Wizard Run 0 Options --------- ASCII 1 Keyboard 1 Movement Vi Keybinds 0 Fullscreen 1 Font 16/Terminus Map View 75x55 Tactical HUD 1 Map Filters NONE Filters NONE Steam 1 RUN: 46dc01fa-50e1-403c-83b4-0bf5deb9a3da